[Event "*** Titled Tuesday Blitz"]
[Site "Chess.com"]
[Date "2018.12.04"]
[Round "4"]
[White "Gabrielian_Artur"]
[Black "Yeytruyol"]
[Result "1-0"]
[WhiteElo "2710"]
[BlackElo "2464"]
[TimeControl "180+2"]
[EndTime "13:50:27 PST"]
[Termination "Gabrielian_Artur won by resignation"]

1. e4 {[%clk 0:03:01.9]} 1... c5 {[%clk 0:02:59.8]} 2. Nc3 {[%clk 0:03:02.3]}
2... Nc6 {[%clk 0:02:59.4]} 3. Bb5 {[%clk 0:03:02.4]} 3... Nd4 {[%clk
0:02:59.2]} 4. Bc4 {[%clk 0:03:01.2]} 4... e6 {[%clk 0:02:58.2]} 5. Nf3 {[%clk
0:03:02.1]} 5... g6 {[%clk 0:02:44.4]} 6. Nxd4 {[%clk 0:03:02.4]} 6... cxd4
{[%clk 0:02:44.8]} 7. Ne2 {[%clk 0:03:04]} 7... d5 {[%clk 0:02:43]} 8. exd5
{[%clk 0:02:59.5]} 8... exd5 {[%clk 0:02:44.9]} 9. Bb5+ {[%clk 0:03:00]} 9...
Bd7 {[%clk 0:02:45.3]} 10. Bxd7+ {[%clk 0:03:00.4]} 10... Qxd7 {[%clk
0:02:45.5]} 11. Nxd4 {[%clk 0:03:01.7]} 11... Bg7 {[%clk 0:02:43.1]} 12. Nf3
{[%clk 0:03:00.8]} 12... Ne7 {[%clk 0:02:41.5]} 13. O-O {[%clk 0:03:01.1]} 13...
O-O {[%clk 0:02:39.1]} 14. d4 {[%clk 0:03:02.3]} 14... Rac8 {[%clk 0:02:34.4]}
15. c3 {[%clk 0:03:03.1]} 15... Rfe8 {[%clk 0:02:31]} 16. h3 {[%clk 0:03:03.7]}
16... b5 {[%clk 0:02:29.8]} 17. Bf4 {[%clk 0:03:01.1]} 17... Nf5 {[%clk
0:02:23.4]} 18. Ne5 {[%clk 0:02:48.3]} 18... Qb7 {[%clk 0:02:20.1]} 19. Nd3
{[%clk 0:02:44.9]} 19... b4 {[%clk 0:02:00.8]} 20. Nxb4 {[%clk 0:02:44]} 20...
Nxd4 {[%clk 0:01:58.9]} 21. Be3 {[%clk 0:02:41.9]} 21... Rc4 {[%clk 0:01:54.1]}
22. a3 {[%clk 0:02:31]} 22... Nf5 {[%clk 0:01:50.7]} 23. Re1 {[%clk 0:02:08.8]}
23... Rd8 {[%clk 0:01:39.1]} 24. Qf3 {[%clk 0:02:03.8]} 24... Re4 {[%clk
0:01:33.4]} 25. Rad1 {[%clk 0:02:02.8]} 25... Nxe3 {[%clk 0:01:17.7]} 26. Rxe3
{[%clk 0:02:02.6]} 26... f5 {[%clk 0:01:17.8]} 27. Red3 {[%clk 0:01:35.2]} 27...
d4 {[%clk 0:01:00.2]} 28. cxd4 {[%clk 0:01:34.8]} 28... a5 {[%clk 0:00:53.9]}
29. Nc2 {[%clk 0:01:17.8]} 29... Qxb2 {[%clk 0:00:54.9]} 30. Ne3 {[%clk
0:01:18.7]} 30... Rexd4 {[%clk 0:00:47.3]} 31. Rxd4 {[%clk 0:01:18.8]} 31...
Rxd4 {[%clk 0:00:48.8]} 32. Qa8+ {[%clk 0:01:19.4]} 32... Bf8 {[%clk 0:00:35.9]}
33. Rxd4 {[%clk 0:01:10.7]} 33... Qxd4 {[%clk 0:00:36.3]} 34. Qxa5 {[%clk
0:01:09.3]} 34... Qa1+ {[%clk 0:00:37.1]} 35. Kh2 {[%clk 0:01:10]} 35... Qxa3
{[%clk 0:00:34.1]} 36. Qd5+ {[%clk 0:01:10.9]} 36... Kg7 {[%clk 0:00:30.8]} 37.
Nc4 {[%clk 0:01:09.9]} 37... Qa7 {[%clk 0:00:26.6]} 38. f4 {[%clk 0:01:09.5]}
38... Qe7 {[%clk 0:00:20.7]} 39. Ne5 {[%clk 0:01:10]} 39... Qf6 {[%clk
0:00:19.6]} 40. Qb7+ {[%clk 0:01:07.1]} 40... Kg8 {[%clk 0:00:18.8]} 41. Qb3+
{[%clk 0:01:07.5]} 41... Kg7 {[%clk 0:00:19.2]} 42. Qd5 {[%clk 0:01:08.5]} 42...
Be7 {[%clk 0:00:17.6]} 43. g3 {[%clk 0:01:05.8]} 43... Kh6 {[%clk 0:00:11.9]}
44. h4 {[%clk 0:01:03.4]} 44... Kg7 {[%clk 0:00:12.5]} 45. Kh3 {[%clk
0:01:03.8]} 45... h5 {[%clk 0:00:13.6]} 46. Nc6 {[%clk 0:01:02.4]} 46... Bd6
{[%clk 0:00:14.3]} 47. Nd4 {[%clk 0:01:01.6]} 47... Be7 {[%clk 0:00:15.5]} 48.
Ne6+ {[%clk 0:01:02.3]} 48... Kh7 {[%clk 0:00:16.8]} 49. Ng5+ {[%clk 0:01:02.8]}
49... Kg7 {[%clk 0:00:18.2]} 50. Qd7 {[%clk 0:01:01.5]} 50... Kf8 {[%clk
0:00:18.5]} 51. Nh7+ {[%clk 0:01:01.7]} 1-0

[Event "*** Titled Tuesday Blitz"]
[Site "Chess.com"]
[Date "2018.12.04"]
[Round "4"]
[White "LyonBeast"]
[Black "PchelkinVK"]
[Result "1-0"]
[WhiteElo "2922"]
[BlackElo "2583"]
[TimeControl "180+2"]
[EndTime "13:50:42 PST"]
[Termination "LyonBeast won on time"]

1. e4 {[%clk 0:03:00.8]} 1... e6 {[%clk 0:02:51.9]} 2. d4 {[%clk 0:02:58.7]}
2... d5 {[%clk 0:02:52.1]} 3. Nc3 {[%clk 0:02:55]} 3... Nf6 {[%clk 0:02:38]} 4.
e5 {[%clk 0:02:54.2]} 4... Nfd7 {[%clk 0:02:38.5]} 5. f4 {[%clk 0:02:53.5]} 5...
c5 {[%clk 0:02:39.5]} 6. Nf3 {[%clk 0:02:54.7]} 6... Nc6 {[%clk 0:02:40.7]} 7.
Be3 {[%clk 0:02:55.8]} 7... cxd4 {[%clk 0:02:41.4]} 8. Nxd4 {[%clk 0:02:55.8]}
8... Bc5 {[%clk 0:02:41.9]} 9. Qd2 {[%clk 0:02:55.3]} 9... O-O {[%clk
0:02:41.1]} 10. O-O-O {[%clk 0:02:54.7]} 10... a6 {[%clk 0:02:36.6]} 11. h4
{[%clk 0:02:49.9]} 11... Qc7 {[%clk 0:02:34.9]} 12. h5 {[%clk 0:02:49.4]} 12...
b5 {[%clk 0:02:12]} 13. Nxc6 {[%clk 0:02:40.1]} 13... Qxc6 {[%clk 0:02:12.2]}
14. Ne2 {[%clk 0:02:41.7]} 14... Qb6 {[%clk 0:01:50.5]} 15. Nd4 {[%clk
0:02:41.2]} 15... a5 {[%clk 0:01:29.8]} 16. h6 {[%clk 0:02:26.9]} 16... g6
{[%clk 0:01:29.9]} 17. Rh3 {[%clk 0:02:27.8]} 17... Ba6 {[%clk 0:01:17.9]} 18.
Nb3 {[%clk 0:02:28.6]} 18... Rfc8 {[%clk 0:01:04]} 19. Nxc5 {[%clk 0:02:25.8]}
19... Nxc5 {[%clk 0:01:04.9]} 20. f5 {[%clk 0:02:20.2]} 20... b4 {[%clk
0:00:51.3]} 21. fxg6 {[%clk 0:02:15.7]} 21... fxg6 {[%clk 0:00:51.3]} 22. Bxa6
{[%clk 0:02:00.4]} 22... Qxa6 {[%clk 0:00:44.4]} 23. Bxc5 {[%clk 0:01:53.6]}
23... Rxc5 {[%clk 0:00:44.5]} 24. Rf3 {[%clk 0:01:54.4]} 24... Rac8 {[%clk
0:00:33.8]} 25. Rdf1 {[%clk 0:01:54]} 25... Qc4 {[%clk 0:00:20.7]} 26. c3 {[%clk
0:01:29.5]} 26... bxc3 {[%clk 0:00:20.1]} 27. bxc3 {[%clk 0:01:30.3]} 27... Qe4
{[%clk 0:00:09.7]} 28. Kb2 {[%clk 0:01:23.7]} 28... Rb8+ {[%clk 0:00:05]} 29.
Ka1 {[%clk 0:01:18.8]} 29... Rcb5 {[%clk 0:00:05.9]} 30. Qc1 {[%clk 0:00:53.5]}
30... a4 {[%clk 0:00:04.3]} 31. Re1 {[%clk 0:00:34.4]} 31... Qg4 {[%clk
0:00:03.2]} 32. Qf4 {[%clk 0:00:29.6]} 32... Qxf4 {[%clk 0:00:03]} 33. Rxf4
{[%clk 0:00:31.5]} 33... Rc5 {[%clk 0:00:02.9]} 34. Rf3 {[%clk 0:00:30.9]} 34...
a3 {[%clk 0:00:03.3]} 35. Ref1 {[%clk 0:00:32.3]} 35... Rbc8 {[%clk 0:00:03.4]}
36. c4 {[%clk 0:00:26.6]} 36... Rxc4 {[%clk 0:00:04.2]} 37. Rxa3 {[%clk
0:00:27.7]} 37... Re4 {[%clk 0:00:04.3]} 38. Ra7 {[%clk 0:00:27.7]} 38... Rxe5
{[%clk 0:00:04.4]} 39. Rg7+ {[%clk 0:00:29.2]} 39... Kh8 {[%clk 0:00:05.4]} 40.
Rff7 {[%clk 0:00:30.5]} 40... Re1+ {[%clk 0:00:05.2]} 41. Kb2 {[%clk 0:00:32.1]}
41... Re2+ {[%clk 0:00:03.4]} 42. Kb3 {[%clk 0:00:33.3]} 42... Rxg2 {[%clk
0:00:04.6]} 43. Rxh7+ {[%clk 0:00:34]} 43... Kg8 {[%clk 0:00:02.7]} 44. Rfg7+
{[%clk 0:00:35.9]} 1-0

[Event "*** Titled Tuesday Blitz"]
[Site "Chess.com"]
[Date "2018.12.04"]
[Round "4"]
[White "David_Klein"]
[Black "OparinGrigoriy"]
[Result "1/2-1/2"]
[WhiteElo "2600"]
[BlackElo "2949"]
[TimeControl "180+2"]
[EndTime "13:50:48 PST"]
[Termination "Game drawn by repetition"]

1. b3 {[%clk 0:03:01.9]} 1... Nf6 {[%clk 0:03:00.5]} 2. Bb2 {[%clk 0:03:02.9]}
2... d5 {[%clk 0:03:02.4]} 3. e3 {[%clk 0:03:03.6]} 3... Bf5 {[%clk 0:03:03.6]}
4. Nf3 {[%clk 0:03:04.1]} 4... e6 {[%clk 0:03:04.3]} 5. c4 {[%clk 0:03:05.1]}
5... c6 {[%clk 0:03:04]} 6. Be2 {[%clk 0:03:05.7]} 6... h6 {[%clk 0:03:05]} 7.
Nc3 {[%clk 0:03:05.8]} 7... Nbd7 {[%clk 0:03:06.3]} 8. O-O {[%clk 0:03:06.5]}
8... Bd6 {[%clk 0:03:06.9]} 9. d4 {[%clk 0:03:06.9]} 9... Qe7 {[%clk 0:03:07.4]}
10. Bd3 {[%clk 0:03:07.5]} 10... O-O {[%clk 0:03:00.7]} 11. Bxf5 {[%clk
0:03:06.9]} 11... exf5 {[%clk 0:03:02.6]} 12. cxd5 {[%clk 0:03:08.2]} 12... cxd5
{[%clk 0:02:59.9]} 13. Nb5 {[%clk 0:03:07.3]} 13... Rfc8 {[%clk 0:02:56.8]} 14.
Rc1 {[%clk 0:03:00.2]} 14... a6 {[%clk 0:02:51.6]} 15. Nxd6 {[%clk 0:02:57.2]}
15... Qxd6 {[%clk 0:02:53.5]} 16. Qd3 {[%clk 0:02:54.6]} 16... Ne4 {[%clk
0:02:54.2]} 17. Rc2 {[%clk 0:02:45.8]} 17... f4 {[%clk 0:02:47.9]} 18. exf4
{[%clk 0:02:33.6]} 18... Qxf4 {[%clk 0:02:49.8]} 19. Rfc1 {[%clk 0:02:32.8]}
19... Rxc2 {[%clk 0:02:49.6]} 20. Qxc2 {[%clk 0:02:33.4]} 20... Ng5 {[%clk
0:02:32.1]} 21. Nxg5 {[%clk 0:02:28]} 21... Qxg5 {[%clk 0:02:34]} 22. Qc7 {[%clk
0:02:10.6]} 22... Re8 {[%clk 0:02:34.9]} 23. h3 {[%clk 0:01:59.8]} 23... Nf6
{[%clk 0:02:35.6]} 24. Rd1 {[%clk 0:01:44.6]} 24... Re2 {[%clk 0:02:32.6]} 25.
Qc8+ {[%clk 0:01:34.4]} 25... Kh7 {[%clk 0:02:32]} 26. Bc1 {[%clk 0:01:35.6]}
26... Qh5 {[%clk 0:02:24.5]} 27. Rf1 {[%clk 0:01:22.8]} 27... Ne4 {[%clk
0:02:10.5]} 28. Be3 {[%clk 0:01:13.1]} 28... Nd6 {[%clk 0:01:13.9]} 29. Qd7
{[%clk 0:01:09.6]} 29... Qg6 {[%clk 0:01:14.8]} 30. Bf4 {[%clk 0:01:04.2]} 30...
Ne4 {[%clk 0:01:12.4]} 31. Qxd5 {[%clk 0:00:59.3]} 31... b5 {[%clk 0:01:07.7]}
32. a4 {[%clk 0:00:56.4]} 32... bxa4 {[%clk 0:00:51.8]} 33. bxa4 {[%clk
0:00:58.3]} 33... Nc3 {[%clk 0:00:53.4]} 34. Qf3 {[%clk 0:00:57.8]} 34... Rc2
{[%clk 0:00:53.2]} 35. Be3 {[%clk 0:00:53.5]} 35... Nxa4 {[%clk 0:00:52.8]} 36.
d5 {[%clk 0:00:54.2]} 36... Nc3 {[%clk 0:00:50.7]} 37. Ra1 {[%clk 0:00:53.1]}
37... Rb2 {[%clk 0:00:36]} 38. Kh1 {[%clk 0:00:46.2]} 38... Rb5 {[%clk
0:00:36.6]} 39. d6 {[%clk 0:00:38.9]} 39... Qxd6 {[%clk 0:00:34.9]} 40. Qxf7
{[%clk 0:00:35.3]} 40... Ne4 {[%clk 0:00:31.9]} 41. Qc4 {[%clk 0:00:30]} 41...
Nf6 {[%clk 0:00:29.2]} 42. Qc2+ {[%clk 0:00:26.1]} 42... Kg8 {[%clk 0:00:25.9]}
43. Qc8+ {[%clk 0:00:26.5]} 43... Kf7 {[%clk 0:00:26.8]} 44. Rc1 {[%clk
0:00:20.1]} 44... Kg6 {[%clk 0:00:20.9]} 45. Qc2+ {[%clk 0:00:20.5]} 45... Kf7
{[%clk 0:00:22.2]} 46. Qc8 {[%clk 0:00:21.2]} 46... Kg6 {[%clk 0:00:17.7]} 47.
Qc2+ {[%clk 0:00:21.6]} 47... Kf7 {[%clk 0:00:19.1]} 48. Qc8 {[%clk 0:00:21.5]}
1/2-1/2

[Event "*** Titled Tuesday Blitz"]
[Site "Chess.com"]
[Date "2018.12.04"]
[Round "4"]
[White "Gr3egor"]
[Black "MikaelyanArman"]
[Result "1-0"]
[WhiteElo "2509"]
[BlackElo "2759"]
[TimeControl "180+2"]
[EndTime "13:50:51 PST"]
[Termination "Gr3egor won on time"]

1. d4 {[%clk 0:03:01.9]} 1... Nf6 {[%clk 0:02:59.3]} 2. c4 {[%clk 0:02:58.9]}
2... c6 {[%clk 0:03:00.5]} 3. Nf3 {[%clk 0:02:58.7]} 3... d5 {[%clk 0:03:01.3]}
4. e3 {[%clk 0:02:59.3]} 4... e6 {[%clk 0:03:01.1]} 5. Nbd2 {[%clk 0:02:56]}
5... c5 {[%clk 0:02:57.6]} 6. dxc5 {[%clk 0:02:51.6]} 6... Bxc5 {[%clk
0:02:57.9]} 7. a3 {[%clk 0:02:52.6]} 7... O-O {[%clk 0:02:58.1]} 8. b4 {[%clk
0:02:53.5]} 8... Be7 {[%clk 0:02:59.6]} 9. Bb2 {[%clk 0:02:54]} 9... a5 {[%clk
0:03:01.1]} 10. Qb3 {[%clk 0:02:53.5]} 10... axb4 {[%clk 0:03:01.4]} 11. axb4
{[%clk 0:02:54.5]} 11... Rxa1+ {[%clk 0:03:03.3]} 12. Bxa1 {[%clk 0:02:56.4]}
12... Na6 {[%clk 0:03:01.9]} 13. c5 {[%clk 0:02:57.1]} 13... b6 {[%clk
0:02:56.1]} 14. Qa4 {[%clk 0:02:49.6]} 14... Nb8 {[%clk 0:02:43.8]} 15. c6
{[%clk 0:02:35.4]} 15... Ne4 {[%clk 0:02:32.1]} 16. Bb5 {[%clk 0:02:24.3]} 16...
Bf6 {[%clk 0:02:22]} 17. Bxf6 {[%clk 0:02:03.6]} 17... Nxf6 {[%clk 0:02:07.5]}
18. O-O {[%clk 0:02:03.7]} 18... Ne8 {[%clk 0:02:02.6]} 19. Nb3 {[%clk
0:01:51.9]} 19... Nd6 {[%clk 0:02:01.5]} 20. Nbd4 {[%clk 0:01:50.2]} 20... Qc7
{[%clk 0:01:58.9]} 21. Rc1 {[%clk 0:01:46.1]} 21... f6 {[%clk 0:01:57.1]} 22.
Bd3 {[%clk 0:01:25.1]} 22... e5 {[%clk 0:01:54.3]} 23. Nb5 {[%clk 0:01:26.2]}
23... Nxb5 {[%clk 0:01:54.8]} 24. Bxb5 {[%clk 0:01:28.1]} 24... Bd7 {[%clk
0:01:43.1]} 25. Rc2 {[%clk 0:01:27]} 25... Bf5 {[%clk 0:01:41.9]} 26. Rd2 {[%clk
0:01:25.6]} 26... Rd8 {[%clk 0:01:35.8]} 27. Qb3 {[%clk 0:01:20.2]} 27... Be6
{[%clk 0:01:32.5]} 28. e4 {[%clk 0:01:20.6]} 28... Nxc6 {[%clk 0:00:30.4]} 29.
exd5 {[%clk 0:01:18.5]} 29... Nd4 {[%clk 0:00:29]} 30. Nxd4 {[%clk 0:00:40.7]}
30... Bxd5 {[%clk 0:00:29.7]} 31. Ne6 {[%clk 0:00:41.3]} 31... Bxb3 {[%clk
0:00:04.1]} 32. Rxd8+ {[%clk 0:00:40.9]} 32... Qxd8 {[%clk 0:00:05.3]} 33. Nxd8
{[%clk 0:00:42.8]} 33... Kf8 {[%clk 0:00:06.8]} 34. Bc6 {[%clk 0:00:27.6]} 34...
Ke7 {[%clk 0:00:07.5]} 35. Nb7 {[%clk 0:00:28.7]} 35... Bc4 {[%clk 0:00:07.7]}
36. f3 {[%clk 0:00:28.2]} 36... Ke6 {[%clk 0:00:07.8]} 37. Kf2 {[%clk
0:00:29.1]} 37... g5 {[%clk 0:00:08.8]} 38. Ke3 {[%clk 0:00:30.1]} 38... f5
{[%clk 0:00:10.1]} 39. g3 {[%clk 0:00:31.2]} 39... f4+ {[%clk 0:00:09.2]} 40.
Kf2 {[%clk 0:00:32.2]} 40... Bd3 {[%clk 0:00:06.3]} 41. h4 {[%clk 0:00:30.7]}
41... fxg3+ {[%clk 0:00:05.4]} 42. Kxg3 {[%clk 0:00:32.6]} 42... gxh4+ {[%clk
0:00:06.4]} 43. Kxh4 {[%clk 0:00:34.5]} 43... Kf5 {[%clk 0:00:06]} 44. Nd6+
{[%clk 0:00:34.6]} 44... Kf4 {[%clk 0:00:07.2]} 45. Nc8 {[%clk 0:00:34.2]} 45...
b5 {[%clk 0:00:05]} 46. Nd6 {[%clk 0:00:35.3]} 46... Ke3 {[%clk 0:00:05.1]} 47.
Nxb5 {[%clk 0:00:34]} 1-0

[Event "*** Titled Tuesday Blitz"]
[Site "Chess.com"]
[Date "2018.12.04"]
[Round "4"]
[White "StoreySniper"]
[Black "DawidCzerw"]
[Result "1-0"]
[WhiteElo "2408"]
[BlackElo "2245"]
[TimeControl "180+2"]
[EndTime "13:50:55 PST"]
[Termination "StoreySniper won by resignation"]

1. g3 {[%clk 0:03:01.9]} 1... c5 {[%clk 0:02:56.5]} 2. Bg2 {[%clk 0:03:03.8]}
2... Nc6 {[%clk 0:02:55.6]} 3. c4 {[%clk 0:03:05.7]} 3... g6 {[%clk 0:02:52.9]}
4. Nc3 {[%clk 0:03:06.8]} 4... Bg7 {[%clk 0:02:52.5]} 5. d3 {[%clk 0:03:07.7]}
5... e5 {[%clk 0:02:50.5]} 6. h4 {[%clk 0:03:07.8]} 6... h5 {[%clk 0:02:47.1]}
7. Nd5 {[%clk 0:03:04.3]} 7... d6 {[%clk 0:02:41.8]} 8. Nf3 {[%clk 0:03:03.6]}
8... Be6 {[%clk 0:02:29.4]} 9. Ng5 {[%clk 0:03:04]} 9... Bc8 {[%clk 0:02:18.6]}
10. Qa4 {[%clk 0:03:00.7]} 10... f6 {[%clk 0:02:08.8]} 11. Ne4 {[%clk
0:02:49.4]} 11... Nh6 {[%clk 0:01:59.6]} 12. Bxh6 {[%clk 0:02:39.7]} 12... Rxh6
{[%clk 0:02:00.1]} 13. Ndxf6+ {[%clk 0:02:40.1]} 13... Bxf6 {[%clk 0:01:36]} 14.
Nxf6+ {[%clk 0:02:41]} 14... Qxf6 {[%clk 0:01:37.9]} 15. Bxc6+ {[%clk
0:02:41.9]} 15... Ke7 {[%clk 0:01:39.3]} 16. Bf3 {[%clk 0:02:33.7]} 16... g5
{[%clk 0:01:17.7]} 17. hxg5 {[%clk 0:02:25.4]} 17... Qxg5 {[%clk 0:01:19.6]} 18.
Qa5 {[%clk 0:02:19]} 18... Kd7 {[%clk 0:00:21.4]} 19. Qd2 {[%clk 0:02:03.2]}
19... Qg6 {[%clk 0:00:20.3]} 20. O-O-O {[%clk 0:01:53.6]} 20... Kc7 {[%clk
0:00:18.1]} 21. Rh4 {[%clk 0:01:53.2]} 21... Be6 {[%clk 0:00:13.2]} 22. Rdh1
{[%clk 0:01:47.1]} 22... Rah8 {[%clk 0:00:13.9]} 23. Qe3 {[%clk 0:01:31]} 23...
Bf5 {[%clk 0:00:12.2]} 24. Kd2 {[%clk 0:01:16.4]} 24... R6h7 {[%clk 0:00:12]}
25. a3 {[%clk 0:01:07.4]} 25... Bg4 {[%clk 0:00:12.6]} 26. Qe4 {[%clk
0:00:46.3]} 26... Qg5+ {[%clk 0:00:10]} 27. Qe3 {[%clk 0:00:42.4]} 27... Qg6
{[%clk 0:00:07.9]} 28. Be4 {[%clk 0:00:42.8]} 28... Bf5 {[%clk 0:00:08.8]} 29.
Bd5 {[%clk 0:00:40.1]} 29... Qf6 {[%clk 0:00:08.1]} 30. Bf3 {[%clk 0:00:38.7]}
30... Qg6 {[%clk 0:00:08.9]} 31. b4 {[%clk 0:00:37.2]} 31... b6 {[%clk
0:00:08.8]} 32. b5 {[%clk 0:00:37.4]} 32... Bg4 {[%clk 0:00:08.3]} 33. Be4
{[%clk 0:00:34.2]} 33... Bf5 {[%clk 0:00:08.2]} 34. Bg2 {[%clk 0:00:35.6]} 34...
Qf6 {[%clk 0:00:08.1]} 35. Be4 {[%clk 0:00:31.1]} 35... Bxe4 {[%clk 0:00:08.1]}
36. Qxe4 {[%clk 0:00:32.5]} 36... Kb8 {[%clk 0:00:08.6]} 37. Qf3 {[%clk
0:00:28.8]} 37... Qxf3 {[%clk 0:00:08.7]} 38. exf3 {[%clk 0:00:29.8]} 38... Rf8
{[%clk 0:00:10.3]} 39. Rxh5 {[%clk 0:00:27.9]} 39... Rhf7 {[%clk 0:00:07.8]} 40.
f4 {[%clk 0:00:27.5]} 40... exf4 {[%clk 0:00:08.8]} 41. g4 {[%clk 0:00:28.9]}
41... f3 {[%clk 0:00:09.9]} 42. Rh8 {[%clk 0:00:29.4]} 42... Kc7 {[%clk
0:00:10.6]} 43. Rxf8 {[%clk 0:00:30.2]} 43... Rxf8 {[%clk 0:00:12.5]} 44. Ke3
{[%clk 0:00:31.3]} 44... Kd7 {[%clk 0:00:13]} 45. Rh7+ {[%clk 0:00:30.1]} 45...
Ke6 {[%clk 0:00:14.3]} 46. Rxa7 {[%clk 0:00:31.7]} 46... Kf6 {[%clk 0:00:13.8]}
47. Kxf3 {[%clk 0:00:32.2]} 47... Ke5+ {[%clk 0:00:14.6]} 48. Ke3 {[%clk
0:00:32.9]} 48... Rh8 {[%clk 0:00:15]} 49. Re7+ {[%clk 0:00:32.8]} 49... Kf6
{[%clk 0:00:15.9]} 50. Rb7 {[%clk 0:00:33.9]} 50... Rh3+ {[%clk 0:00:14.4]} 51.
f3 {[%clk 0:00:34.8]} 51... Rh2 {[%clk 0:00:15.7]} 52. Rxb6 {[%clk 0:00:35.6]}
1-0

[Event "*** Titled Tuesday Blitz"]
[Site "Chess.com"]
[Date "2018.12.04"]
[Round "4"]
[White "Orest_Vovk"]
[Black "Anar_Aliakbarov"]
[Result "1-0"]
[WhiteElo "2416"]
[BlackElo "2562"]
[TimeControl "180+2"]
[EndTime "13:50:56 PST"]
[Termination "Orest_Vovk won by resignation"]

1. g4 {[%clk 0:02:58.6]} 1... d5 {[%clk 0:02:56.5]} 2. h3 {[%clk 0:02:59.3]}
2... c5 {[%clk 0:02:52.7]} 3. Bg2 {[%clk 0:03:01.2]} 3... Nc6 {[%clk 0:02:51]}
4. c4 {[%clk 0:03:02.1]} 4... dxc4 {[%clk 0:02:47.7]} 5. Bxc6+ {[%clk 0:03:04]}
5... bxc6 {[%clk 0:02:48.2]} 6. Qa4 {[%clk 0:03:05.4]} 6... Qd5 {[%clk
0:02:41.1]} 7. Nf3 {[%clk 0:03:06.1]} 7... Nf6 {[%clk 0:02:33.7]} 8. Nc3 {[%clk
0:03:06.3]} 8... Qd6 {[%clk 0:02:34.6]} 9. Qxc4 {[%clk 0:03:06.1]} 9... e5
{[%clk 0:02:31.9]} 10. d3 {[%clk 0:03:04.6]} 10... Be6 {[%clk 0:02:31.8]} 11.
Qa4 {[%clk 0:03:05.2]} 11... h6 {[%clk 0:02:28.5]} 12. g5 {[%clk 0:03:04.2]}
12... hxg5 {[%clk 0:02:28.8]} 13. Bxg5 {[%clk 0:03:05.1]} 13... Nd5 {[%clk
0:02:20.9]} 14. Ne4 {[%clk 0:03:04.7]} 14... Qc7 {[%clk 0:02:16.2]} 15. Nxe5
{[%clk 0:03:04.9]} 15... f6 {[%clk 0:02:11.6]} 16. Ng6 {[%clk 0:02:59.6]} 16...
Rxh3 {[%clk 0:01:52.8]} 17. Rxh3 {[%clk 0:02:58.1]} 17... Bxh3 {[%clk
0:01:54.7]} 18. Nxf8 {[%clk 0:02:56.1]} 18... Kxf8 {[%clk 0:01:50.9]} 19. Bd2
{[%clk 0:02:49.6]} 19... Rb8 {[%clk 0:01:49]} 20. O-O-O {[%clk 0:02:45.6]} 20...
Nb6 {[%clk 0:01:42.2]} 21. Qa3 {[%clk 0:02:39.8]} 21... Nd7 {[%clk 0:01:34]} 22.
Nxc5 {[%clk 0:02:36.2]} 22... Nxc5 {[%clk 0:01:34.4]} 23. Qxc5+ {[%clk
0:02:36.6]} 23... Kf7 {[%clk 0:01:35.8]} 24. Be3 {[%clk 0:02:23.2]} 24... Be6
{[%clk 0:01:35.1]} 25. Qxa7 {[%clk 0:02:18]} 25... Qxa7 {[%clk 0:01:12.9]} 26.
Bxa7 {[%clk 0:02:18.7]} 26... Rb7 {[%clk 0:01:12.2]} 27. Bc5 {[%clk 0:02:15.1]}
27... Bxa2 {[%clk 0:01:13.4]} 28. Rh1 {[%clk 0:02:12.3]} 28... Bd5 {[%clk
0:01:05.9]} 29. Rh8 {[%clk 0:02:10.2]} 29... Rb5 {[%clk 0:01:05.7]} 30. Ba3
{[%clk 0:02:09.4]} 30... Rb7 {[%clk 0:00:53.9]} 31. Kd2 {[%clk 0:02:07.8]} 31...
Rd7 {[%clk 0:00:46.6]} 32. Bc5 {[%clk 0:02:04.4]} 32... Kg6 {[%clk 0:00:42.4]}
33. b4 {[%clk 0:02:03.9]} 33... Rc7 {[%clk 0:00:40.1]} 34. e4 {[%clk 0:02:04.1]}
34... Be6 {[%clk 0:00:41.3]} 35. f4 {[%clk 0:02:01.9]} 35... f5 {[%clk
0:00:40.7]} 36. Ke3 {[%clk 0:02:02.8]} 36... Rc8 {[%clk 0:00:41.3]} 37. Rh1
{[%clk 0:01:56.8]} 37... Kf7 {[%clk 0:00:42.4]} 38. Bd4 {[%clk 0:01:53.7]} 38...
Rb8 {[%clk 0:00:38.8]} 39. Bc3 {[%clk 0:01:53.2]} 39... Kg8 {[%clk 0:00:32.6]}
40. Rg1 {[%clk 0:01:50.5]} 40... Rb7 {[%clk 0:00:33.8]} 41. Rg6 {[%clk
0:01:47.9]} 41... Re7 {[%clk 0:00:30]} 42. Be5 {[%clk 0:01:38.7]} 42... fxe4
{[%clk 0:00:30.5]} 43. dxe4 {[%clk 0:01:36.2]} 43... Bd7 {[%clk 0:00:30.8]} 44.
Kd4 {[%clk 0:01:33.1]} 44... Be8 {[%clk 0:00:31.4]} 45. Rg1 {[%clk 0:01:31]}
45... Rb7 {[%clk 0:00:29.9]} 46. Kc5 {[%clk 0:01:30.2]} 46... Kf8 {[%clk
0:00:27.9]} 47. Bc3 {[%clk 0:01:15.4]} 47... g6 {[%clk 0:00:25.1]} 48. Rh1
{[%clk 0:01:12.6]} 48... Re7 {[%clk 0:00:21.6]} 49. Be5 {[%clk 0:01:07.6]} 49...
Rb7 {[%clk 0:00:21.9]} 50. Kd6 {[%clk 0:01:00.1]} 50... Rxb4 {[%clk 0:00:09.2]}
51. Ke6 {[%clk 0:00:59.1]} 51... Bf7+ {[%clk 0:00:08.8]} 52. Kf6 {[%clk
0:00:59.8]} 52... Rxe4 {[%clk 0:00:03.3]} 53. Rh8+ {[%clk 0:00:59.8]} 53... Bg8
{[%clk 0:00:04.3]} 54. Bd6+ {[%clk 0:01:00.6]} 54... Ke8 {[%clk 0:00:05.4]} 55.
Rxg8+ {[%clk 0:01:01.8]} 55... Kd7 {[%clk 0:00:07.3]} 56. Be5 {[%clk 0:01:00.5]}
1-0